fUSD/lending_fUSD_20240211
["ID","MTS","AMOUNT","RATE_DAILY","PERIOD"]
[313721344,1707610260098,-2127.83,0.00038356,30]
[313721345,1707610260106,-500.0,0.00038356,30]
[313721346,1707610260115,-521.81,0.00038356,30]
[313721347,1707610260124,-500.0,0.00038356,30]
[313721348,1707610260133,-744.84,0.00038356,30]
[313721349,1707610260143,-3019.15,0.00038356,30]
[313721350,1707610260152,-500.0,0.00038356,30]
[313721351,1707610260161,-500.0,0.00038356,30]
[313721352,1707610260171,-1177.59,0.00038356,30]
[313721353,1707610260180,-500.0,0.00038356,30]
[313721354,1707610260190,-1625.29,0.00038356,30]
[313721355,1707610260199,-2283.56,0.00038356,30]
[313721356,1707610260209,-1179.38,0.00038356,30]
[313721357,1707610260218,-782.46,0.00038356,30]
[313721358,1707610260228,-500.0,0.00038356,30]
[313721359,1707610260237,-160.10564377,0.00038356,2]
[313721360,1707610260246,-500.0,0.00038356,7]
[313721361,1707610260255,-399.25061567,0.00038356,2]
[313721362,1707610260267,-500.0,0.00038356,30]
[313721363,1707610260276,-500.0,0.00038356,30]
[313721364,1707610260286,-500.0,0.00038356,30]
[313721365,1707610260295,-500.0,0.00038356,30]
[313721366,1707610260304,-500.0,0.00038356,30]
[313721367,1707610260313,-500.0,0.00038356,30]
[313721368,1707610260323,-500.0,0.00038356,30]
[313721369,1707610260332,-2401.63,0.00038356,30]
[313721370,1707610260341,-500.0,0.00038356,30]
[313721371,1707610260350,-500.0,0.00038356,30]
[313721372,1707610260359,-504.12140143,0.00038356,30]
[313721373,1707610260369,-500.0,0.00038356,30]
[313721374,1707610260378,-150.0,0.00038356,2]
[313721375,1707610260387,-155.0,0.00038357,2]
[313721376,1707610260397,-155.01257736,0.00038372,7]
[313721377,1707610260406,-406.02706075,0.00038376,7]
[313721378,1707610260415,-6878.45374418,0.00038411,2]
[313721379,1707610260425,-14493.7244911,0.00038484,11]
[313721380,1707610260434,-1208.0,0.00038494,30]
[313721381,1707610260443,-152.20144922,0.00038519,7]
[313721382,1707610260452,-150.51389881,0.0003854,7]
[313721383,1707610260462,-573.10028289,0.00038562,7]
[313721384,1707610260471,-4187.16,0.0003859,7]
[313721385,1707610260480,-4187.16,0.0003859,7]
[313721386,1707610260489,-15715.4661819,0.00038604,2]
[313721387,1707610260499,-3618.6473168,0.00038604,2]
[313721388,1707610260508,-13064.7607238,0.00038604,2]
[313721389,1707610260518,-23497.0575221,0.00038604,2]
[313721390,1707610260527,-3173.5885278,0.00038604,2]
[313721391,1707610260536,-155.57880662,0.00038626,7]
[313721392,1707610260546,-500.0,0.0003863,30]
[313721393,1707610260555,-500.0,0.0003863,30]
[313721394,1707610260564,-500.0,0.0003863,30]
[313721395,1707610260573,-246.4917124,0.0003863,30]
[313721396,1707610260582,-500.0,0.0003863,30]
[313721397,1707610260591,-706.54,0.0003863,30]
[313721398,1707610260601,-500.0,0.0003863,30]
[313721399,1707610260610,-500.0,0.0003863,30]
[313721400,1707610260620,-518.74403507,0.0003863,30]
[313721401,1707610260629,-500.0,0.0003863,30]
[313721402,1707610260638,-500.0,0.0003863,30]
[313721403,1707610260647,-508.3979808,0.0003863,30]
[313721404,1707610260657,-775.61,0.0003863,30]
[313721405,1707610260667,-500.0,0.0003863,30]
[313721406,1707610260676,-536.44,0.0003863,30]
[313721407,1707610260686,-500.0,0.0003863,30]
[313721408,1707610260696,-500.0,0.0003863,30]
[313721409,1707610260705,-500.0,0.0003863,30]
[313721410,1707610260715,-545.34,0.0003863,30]
[313721411,1707610260725,-500.0,0.0003863,30]
[313721412,1707610260734,-500.0,0.0003863,30]
[313721413,1707610260743,-500.0,0.0003863,30]
[313721414,1707610260753,-493.29987309,0.0003863,30]
[313721415,1707610260762,-500.0,0.0003863,30]
[313721416,1707610260771,-500.0,0.0003863,30]
[313721417,1707610260781,-500.0,0.0003863,30]
[313721418,1707610260790,-241.29251784,0.0003863,30]
[313721419,1707610260799,-332.93118866,0.0003863,30]
[313721420,1707610260808,-500.0,0.0003863,30]
[313721421,1707610260818,-555.57,0.0003863,30]
[313721422,1707610260826,-500.0,0.0003863,30]
[313721423,1707610260835,-500.0,0.0003863,30]
[313721424,1707610260845,-500.0,0.0003863,30]
[313721425,1707610260858,-500.0,0.0003863,30]
[313721426,1707610260867,-500.0,0.0003863,30]
[313721427,1707610260877,-250.0,0.0003863,30]
[313721428,1707610260886,-500.0,0.0003863,30]
[313721429,1707610260896,-500.0,0.0003863,30]
[313721430,1707610260905,-500.0,0.0003863,30]
[313721431,1707610260914,-500.0,0.0003863,30]
[313721432,1707610260923,-500.0,0.0003863,30]
[313721433,1707610260933,-500.0,0.0003863,30]
[313721434,1707610260942,-500.0,0.0003863,30]
[313721435,1707610260952,-500.0,0.0003863,30]
[313721436,1707610260961,-500.0,0.0003863,30]
[313721437,1707610260970,-648.05,0.0003863,30]
[313721438,1707610260980,-500.0,0.0003863,30]
[313721439,1707610260989,-500.0,0.0003863,30]
[313721440,1707610261002,-501.36304821,0.0003863,2]
[313721441,1707610261011,-500.0,0.0003863,30]
[313721442,1707610261020,-500.0,0.0003863,30]
[313721443,1707610261029,-500.0,0.0003863,30]
[313721444,1707610261040,-500.0,0.0003863,30]
[313721445,1707610261049,-1000.0,0.0003863,2]
[313721446,1707610261058,-500.0,0.0003863,30]
[313721447,1707610261068,-500.0,0.0003863,30]
[313721448,1707610261078,-500.0,0.0003863,30]
[313721449,1707610261088,-500.0,0.0003863,30]
[313721450,1707610261096,-500.0,0.0003863,30]
[313721451,1707610261106,-500.0,0.0003863,30]
[313721452,1707610261115,-174.80480563,0.0003863,30]
[313721453,1707610261123,-500.0,0.0003863,30]
[313721454,1707610261136,-500.0,0.0003863,30]
[313721455,1707610261147,-500.0,0.0003863,30]
[313721456,1707610261156,-500.0,0.0003863,30]
[313721457,1707610261166,-500.0,0.0003863,30]
[313721458,1707610261175,-500.0,0.0003863,30]
[313721459,1707610261184,-500.0,0.0003863,30]
[313721460,1707610261194,-500.0,0.0003863,30]
[313721461,1707610261204,-500.0,0.0003863,30]
[313721462,1707610261213,-500.0,0.0003863,30]
[313721463,1707610261222,-1000.0,0.0003863,7]
[313721464,1707610261231,-500.0,0.0003863,30]
[313721465,1707610261241,-500.0,0.0003863,30]
[313721466,1707610261250,-500.0,0.0003863,30]
[313721467,1707610261259,-560.33573558,0.0003863,30]
[313721468,1707610261269,-500.0,0.0003863,30]
[313721469,1707610261278,-500.0,0.0003863,30]
[313721470,1707610261287,-1676.27,0.0003863,30]
[313721471,1707610261296,-646.17,0.0003863,30]
[313721472,1707610261305,-500.0,0.0003863,30]
[313721473,1707610261314,-572.87,0.0003863,30]
[313721474,1707610261324,-500.0,0.0003863,30]
[313721475,1707610261333,-151.61322298,0.0003863,30]
[313721476,1707610261342,-769.96,0.0003863,2]
[313721477,1707610261352,-1275.58,0.0003863,30]
[313721478,1707610261361,-500.0,0.0003863,30]
[313721479,1707610261370,-500.0,0.0003863,30]
[313721480,1707610261380,-528.81,0.0003863,30]
[313721481,1707610261389,-688.53,0.0003863,30]
[313721482,1707610261399,-527.5507515,0.0003863,30]
[313721483,1707610261408,-500.0,0.0003863,30]
[313721484,1707610261418,-500.0,0.0003863,30]
[313721485,1707610261427,-500.0,0.0003863,30]
[313721486,1707610261436,-500.0,0.0003863,30]
[313721487,1707610261446,-500.0,0.0003863,30]
[313721488,1707610261455,-500.0,0.0003863,30]
[313721489,1707610261464,-500.0,0.0003863,30]
[313721490,1707610261474,-1465.99,0.0003863,30]
[313721491,1707610261483,-500.0,0.0003863,30]
[313721492,1707610261493,-500.0,0.0003863,30]
[313721493,1707610261502,-500.0,0.0003863,30]
[313721494,1707610261511,-500.0,0.0003863,30]
[313721495,1707610261520,-500.0,0.0003863,30]
[313721496,1707610261530,-500.0,0.0003863,30]
[313721497,1707610261539,-500.0,0.0003863,30]
[313721498,1707610261549,-500.0,0.0003863,30]
[313721499,1707610261558,-840.79,0.0003863,30]
[313721500,1707610261568,-500.0,0.0003863,30]
[313721501,1707610261577,-500.0,0.0003863,30]
[313721502,1707610261587,-1021.32,0.0003863,30]
[313721503,1707610261597,-500.0,0.0003863,30]
[313721504,1707610261606,-500.0,0.0003863,30]
[313721505,1707610261616,-500.0,0.0003863,30]
[313721506,1707610261625,-517.92,0.0003863,30]
[313721507,1707610261635,-500.0,0.0003863,30]
[313721508,1707610261644,-500.0,0.0003863,30]
[313721509,1707610261654,-500.0,0.0003863,30]
[313721510,1707610261663,-500.0,0.0003863,30]
[313721511,1707610261851,-910.78,0.0003863,30]
[313721512,1707610261861,-500.0,0.0003863,30]
[313721513,1707610261871,-518.97,0.0003863,30]
[313721514,1707610261880,-506.97,0.0003863,30]
[313721515,1707610261901,-516.86,0.0003863,30]
[313721516,1707610261911,-500.0,0.0003863,30]
[313721517,1707610261923,-500.0,0.0003863,30]
[313721518,1707610261934,-500.0,0.0003863,30]
[313721519,1707610261945,-877.57,0.0003863,30]
[313721520,1707610261957,-500.0,0.0003863,30]
[313721521,1707610261968,-500.0,0.0003863,30]
[313721522,1707610261978,-956.96,0.0003863,30]
[313721523,1707610261989,-500.0,0.0003863,30]
[313721524,1707610262003,-613.18,0.0003863,30]
[313721525,1707610262013,-500.0,0.0003863,30]
[313721526,1707610262022,-600.96866235,0.0003863,30]
[313721527,1707610262032,-558.34012689,0.0003863,30]
[313721528,1707610262042,-308.02661286,0.0003863,30]
[313721529,1707610262052,-500.0,0.0003863,30]
[313721530,1707610262061,-207.85065267,0.0003863,30]
[313721531,1707610262071,-537.91,0.0003863,30]
[313721532,1707610262080,-500.0,0.0003863,30]
[313721533,1707610262091,-752.48,0.0003863,30]
[313721534,1707610262101,-500.0,0.0003863,30]
[313721535,1707610262111,-518.12,0.0003863,30]
[313721536,1707610262121,-579.75,0.0003863,30]
[313721537,1707610262131,-640.04,0.0003863,30]
[313721538,1707610262141,-497.0,0.0003863,2]
[313721539,1707610262151,-500.0,0.0003863,30]
[313721540,1707610262161,-1139.53,0.0003863,30]
[313721541,1707610262171,-537.54,0.0003863,30]
[313721542,1707610262181,-500.0,0.0003863,30]
[313721543,1707610262190,-535.23,0.0003863,30]
[313721544,1707610262201,-500.0,0.0003863,30]
[313721545,1707610262211,-584.16,0.0003863,30]
[313721546,1707610262221,-300.0,0.0003863,30]
[313721547,1707610262230,-692.83,0.0003863,30]
[313721548,1707610262240,-500.0,0.0003863,30]
[313721549,1707610262250,-788.11,0.0003863,30]
[313721550,1707610262260,-500.0,0.0003863,30]
[313721551,1707610262269,-500.0,0.0003863,30]
[313721552,1707610262279,-500.0,0.0003863,30]
[313721553,1707610262289,-500.0,0.0003863,30]
[313721554,1707610262299,-1033.64,0.0003863,30]
[313721555,1707610262308,-738.56,0.0003863,30]
[313721556,1707610262318,-500.0,0.0003863,30]
[313721557,1707610262328,-835.83,0.0003863,30]
[313721558,1707610262338,-669.49,0.0003863,30]
[313721559,1707610262347,-1034.04,0.0003863,30]
[313721560,1707610262357,-500.0,0.0003863,30]
[313721561,1707610262366,-500.0,0.0003863,30]
[313721562,1707610262375,-848.8,0.0003863,30]
[313721563,1707610262384,-500.0,0.0003863,30]
[313721564,1707610262396,-500.0,0.0003863,30]
[313721565,1707610262406,-558.1,0.0003863,30]
[313721566,1707610262415,-500.0,0.0003863,30]
[313721567,1707610262424,-500.0,0.0003863,30]
[313721568,1707610262434,-683.74,0.0003863,30]
[313721569,1707610262443,-846.05,0.0003863,30]
[313721570,1707610262453,-1243.96,0.0003863,30]
[313721571,1707610262462,-500.0,0.0003863,30]
[313721572,1707610262472,-500.0,0.0003863,30]
[313721573,1707610262481,-754.28,0.0003863,30]
[313721574,1707610262490,-500.0,0.0003863,30]
[313721575,1707610262500,-752.75,0.0003863,30]
[313721576,1707610262509,-1474.29,0.0003863,30]
[313721577,1707610262519,-667.53,0.0003863,30]
[313721578,1707610262529,-583.2108369,0.0003863,30]
[313721579,1707610262538,-500.0,0.0003863,30]
[313721580,1707610262548,-500.0,0.0003863,30]
[313721581,1707610262557,-512.29356742,0.0003863,30]
[313721582,1707610262567,-500.0,0.0003863,30]
[313721583,1707610262576,-212.89,0.0003863,30]
[313721584,1707610262586,-1403.54,0.0003863,30]
[313721585,1707610262595,-500.0,0.0003863,30]
[313721586,1707610262605,-1114.97,0.0003863,30]
[313721587,1707610262614,-530.05,0.0003863,30]
[313721588,1707610262623,-520.83,0.0003863,30]
[313721589,1707610262633,-1649.21,0.0003863,30]
[313721590,1707610262643,-725.96,0.0003863,30]
[313721591,1707610262653,-529.48563252,0.0003863,30]
[313721592,1707610262662,-1542.54,0.0003863,30]
[313721593,1707610262673,-1346.59,0.0003863,30]
[313721594,1707610262683,-1053.84,0.0003863,30]
[313721595,1707610262693,-500.0,0.0003863,30]
[313721596,1707610262702,-500.0,0.0003863,30]
[313721597,1707610262712,-500.0,0.0003863,30]
[313721598,1707610262721,-1513.28,0.0003863,30]
[313721599,1707610262731,-500.0,0.0003863,30]
[313721600,1707610262740,-500.0,0.0003863,30]
[313721601,1707610262749,-500.0,0.0003863,30]
[313721602,1707610262759,-500.0,0.0003863,30]
[313721603,1707610262768,-500.0,0.0003863,30]
[313721604,1707610262777,-500.0,0.0003863,30]
[313721605,1707610262787,-500.0,0.0003863,30]
[313721606,1707610262796,-748.27,0.0003863,30]
[313721607,1707610262805,-500.0,0.0003863,30]
[313721608,1707610262815,-571.36,0.0003863,30]
[313721609,1707610262824,-500.0,0.0003863,30]
[313721610,1707610262833,-500.0,0.0003863,30]
[313721611,1707610262842,-610.13,0.0003863,30]
[313721612,1707610262852,-500.0,0.0003863,30]
[313721613,1707610262861,-500.0,0.0003863,30]
[313721614,1707610262870,-500.0,0.0003863,30]
[313721615,1707610262879,-632.71,0.0003863,30]
[313721616,1707610262888,-500.0,0.0003863,30]
[313721617,1707610262900,-500.0,0.0003863,30]
[313721618,1707610262909,-747.38,0.0003863,30]
[313721619,1707610262918,-500.0,0.0003863,30]
[313721620,1707610262927,-500.0,0.0003863,30]
[313721621,1707610262937,-1146.92,0.0003863,30]
[313721622,1707610262947,-1104.17,0.0003863,30]
[313721623,1707610262956,-575.88278388,0.0003863,30]
[313721624,1707610262965,-500.0,0.0003863,30]
[313721625,1707610262984,-500.0,0.0003863,30]
[313721626,1707610263017,-500.0,0.0003863,30]
[313721627,1707610263036,-500.0,0.0003863,30]
[313721628,1707610263056,-500.0,0.0003863,30]
[313721629,1707610263077,-500.0,0.0003863,30]
[313721630,1707610263094,-655.43,0.0003863,30]
[313721631,1707610263111,-500.0,0.0003863,30]
[313721632,1707610263128,-1039.53,0.0003863,7]
[313721633,1707610263148,-489.79006157,0.0003863,30]
[313721634,1707610263167,-500.0,0.0003863,30]
[313721635,1707610263183,-500.0,0.0003863,2]
[313721636,1707610263203,-500.0,0.0003863,30]
[313721637,1707610263224,-500.0,0.0003863,30]
[313721638,1707610263236,-650.17,0.0003863,30]
[313721639,1707610263254,-500.0,0.0003863,30]
[313721640,1707610263272,-1041.2,0.0003863,30]
[313721641,1707610263285,-1066.44,0.0003863,30]
[313721642,1707610263300,-1455.0,0.0003863,30]
[313721643,1707610263316,-500.0,0.0003863,30]
[313721644,1707610263335,-500.0,0.0003863,30]
[313721645,1707610263352,-703.21,0.0003863,30]
[313721646,1707610263373,-500.0,0.0003863,30]
[313721647,1707610263388,-1351.38,0.0003863,30]
[313721648,1707610263406,-500.0,0.0003863,30]
[313721649,1707610263422,-1671.08,0.0003863,30]
[313721650,1707610263437,-500.0,0.0003863,30]
[313721651,1707610263453,-550.9,0.0003863,30]
[313721652,1707610263468,-500.0,0.0003863,30]
[313721653,1707610263482,-203.26945113,0.0003863,30]
[313721654,1707610263498,-541.51,0.0003863,30]
[313721655,1707610263513,-500.0,0.0003863,30]
[313721656,1707610263528,-1132.03,0.0003863,30]
[313721657,1707610263543,-500.0,0.0003863,30]
[313721658,1707610263558,-500.0,0.0003863,30]
[313721659,1707610263573,-500.0,0.0003863,30]
[313721660,1707610263596,-500.0,0.0003863,30]
[313721661,1707610263617,-500.0,0.0003863,30]
[313721662,1707610263637,-500.0,0.0003863,30]
[313721663,1707610263657,-500.0,0.0003863,30]
[313721664,1707610263674,-1429.03,0.0003863,30]
[313721665,1707610263691,-1228.01,0.0003863,30]
[313721666,1707610263706,-707.43,0.0003863,30]
[313721667,1707610263725,-500.0,0.0003863,30]
[313721668,1707610263741,-500.0,0.0003863,30]
[313721669,1707610263756,-500.0,0.0003863,30]
[313721670,1707610263772,-500.0,0.0003863,30]
[313721671,1707610263790,-500.0,0.0003863,30]
[313721672,1707610263806,-523.92824576,0.0003863,30]
[313721673,1707610263820,-500.0,0.0003863,30]
[313721674,1707610263835,-1369.0,0.0003863,30]
[313721675,1707610263850,-500.0,0.0003863,30]
[313721676,1707610263865,-739.92,0.0003863,30]
[313721677,1707610263880,-500.0,0.0003863,30]
[313721678,1707610263896,-500.0,0.0003863,30]
[313721679,1707610263911,-500.0,0.0003863,30]
[313721680,1707610263926,-500.0,0.0003863,30]
[313721681,1707610263941,-549.28,0.0003863,30]
[313721682,1707610263956,-500.0,0.0003863,30]
[313721683,1707610263971,-500.0,0.0003863,30]
[313721684,1707610263986,-802.2,0.0003863,30]
[313721685,1707610264002,-500.0,0.0003863,30]
[313721686,1707610264017,-500.0,0.0003863,30]
[313721687,1707610264031,-500.0,0.0003863,30]
[313721688,1707610264049,-500.0,0.0003863,30]
[313721689,1707610264072,-500.0,0.0003863,30]
[313721690,1707610264093,-1231.84,0.0003863,30]
[313721691,1707610264111,-691.61,0.0003863,30]
[313721692,1707610264129,-500.0,0.0003863,30]
[313721693,1707610264146,-500.0,0.0003863,30]
[313721694,1707610264162,-777.31,0.0003863,30]
[313721695,1707610264179,-500.0,0.0003863,30]
[313721696,1707610264194,-500.0,0.0003863,30]
[313721697,1707610264210,-663.95,0.0003863,2]
[313721698,1707610264226,-1237.14,0.0003863,30]
[313721699,1707610264241,-511.35,0.0003863,30]
[313721700,1707610264257,-500.0,0.0003863,30]
[313721701,1707610264272,-500.0,0.0003863,30]
[313721702,1707610264288,-500.0,0.0003863,30]
[313721703,1707610264303,-1142.28,0.0003863,30]
[313721704,1707610264316,-500.0,0.0003863,30]
[313721705,1707610264326,-500.0,0.0003863,30]
[313721706,1707610264335,-699.76,0.0003863,30]
[313721707,1707610264344,-500.0,0.0003863,30]
[313721708,1707610264354,-500.0,0.0003863,30]
[313721709,1707610264364,-500.0,0.0003863,30]
[313721710,1707610264373,-1185.69,0.0003863,30]
[313721711,1707610264383,-500.0,0.0003863,30]
[313721712,1707610264393,-500.0,0.0003863,30]
[313721713,1707610264404,-500.0,0.0003863,30]
[313721714,1707610264413,-500.0,0.0003863,30]
[313721715,1707610264422,-349.82480031,0.0003863,30]
[313721716,1707610264432,-500.0,0.0003863,30]
[313721717,1707610264441,-500.0,0.0003863,30]
[313721718,1707610264450,-599.1,0.0003863,30]
[313721719,1707610264460,-671.45,0.0003863,30]
[313721720,1707610264470,-500.0,0.0003863,30]
[313721721,1707610264479,-280.05787332,0.0003863,30]
[313721722,1707610264489,-500.0,0.0003863,30]
[313721723,1707610264498,-500.0,0.0003863,30]
[313721724,1707610264508,-730.55,0.0003863,30]
[313721725,1707610264518,-500.0,0.0003863,30]
[313721726,1707610264527,-1918.39,0.0003863,30]
[313721727,1707610264537,-653.86,0.0003863,30]
[313721728,1707610264546,-500.0,0.0003863,30]
[313721729,1707610264556,-500.0,0.0003863,30]
[313721730,1707610264565,-640.21,0.0003863,30]
[313721731,1707610264575,-500.0,0.0003863,30]
[313721732,1707610264585,-548.62,0.0003863,30]
[313721733,1707610264595,-547.97,0.0003863,30]
[313721734,1707610264604,-1099.1,0.0003863,30]
[313721735,1707610264615,-500.0,0.0003863,30]
[313721736,1707610264625,-491.27472363,0.0003863,7]
[313721737,1707610264636,-500.0,0.0003863,30]
[313721738,1707610264645,-510.75596947,0.0003863,30]
[313721739,1707610264657,-500.0,0.0003863,30]
[313721740,1707610265119,-500.0,0.0003863,30]
[313721741,1707610265152,-500.0,0.0003863,30]
[313721742,1707610265174,-504.59756673,0.0003863,30]
[313721743,1707610265186,-500.0,0.0003863,30]
[313721744,1707610265196,-500.0,0.0003863,30]
[313721745,1707610265206,-500.0,0.0003863,30]
[313721746,1707610265216,-500.0,0.0003863,30]
[313721747,1707610265226,-500.0,0.0003863,30]
[313721748,1707610265237,-519.82,0.0003863,30]
[313721749,1707610265247,-500.0,0.0003863,30]
[313721750,1707610265258,-500.0,0.0003863,30]
[313721751,1707610265267,-500.0,0.0003863,30]
[313721752,1707610265277,-642.23790237,0.0003863,30]
[313721753,1707610265287,-500.0,0.0003863,30]
[313721754,1707610265296,-1713.75,0.0003863,30]
[313721755,1707610265305,-500.0,0.0003863,30]
[313721756,1707610265315,-500.0,0.0003863,30]
[313721757,1707610265326,-500.0,0.0003863,30]
[313721758,1707610265336,-500.0,0.0003863,30]
[313721759,1707610265346,-696.24,0.0003863,30]
[313721760,1707610265355,-500.0,0.0003863,30]
[313721761,1707610265365,-500.0,0.0003863,30]
[313721762,1707610265374,-500.0,0.0003863,30]
[313721763,1707610265383,-500.0,0.0003863,30]
[313721764,1707610265392,-500.0,0.0003863,30]
[313721765,1707610265403,-1837.64,0.0003863,30]
[313721766,1707610265413,-540.52,0.0003863,30]
[313721767,1707610265423,-500.0,0.0003863,30]
[313721768,1707610265432,-500.0,0.0003863,30]
[313721769,1707610265442,-1264.44,0.0003863,30]
[313721770,1707610265451,-500.0,0.0003863,30]
[313721771,1707610265461,-500.0,0.0003863,30]
[313721772,1707610265470,-500.0,0.0003863,30]
[313721773,1707610265480,-500.0,0.0003863,30]
[313721774,1707610265489,-500.0,0.0003863,30]
[313721775,1707610265499,-500.0,0.0003863,30]
[313721776,1707610265509,-500.0,0.0003863,30]
[313721777,1707610265518,-590.76,0.0003863,30]
[313721778,1707610265528,-500.0,0.0003863,30]
[313721779,1707610265538,-500.0,0.0003863,30]
[313721780,1707610265547,-463.94,0.0003863,30]
[313721781,1707610265557,-2298.9,0.0003863,30]
[313721782,1707610265567,-500.0,0.0003863,30]
[313721783,1707610265576,-1352.4,0.0003863,30]
[313721784,1707610265586,-1473.6,0.0003863,30]
[313721785,1707610265596,-500.0,0.0003863,30]
[313721786,1707610265606,-500.0,0.0003863,30]
[313721787,1707610265616,-500.0,0.0003863,30]
[313721788,1707610265626,-512.09,0.0003863,30]
[313721789,1707610265635,-500.0,0.0003863,30]
[313721790,1707610265645,-388.80555447,0.0003863,30]
[313721791,1707610265655,-500.0,0.0003863,30]
[313721792,1707610265665,-590.0,0.0003863,30]
[313721793,1707610265675,-773.35,0.0003863,30]
[313721794,1707610265685,-931.15,0.0003863,30]
[313721795,1707610265694,-824.67,0.0003863,30]
[313721796,1707610265704,-527.21515698,0.0003863,30]
[313721797,1707610265714,-642.4,0.0003863,30]
[313721798,1707610265723,-1461.39,0.0003863,30]
[313721799,1707610265732,-500.0,0.0003863,30]
[313721800,1707610265742,-500.0,0.0003863,30]
[313721801,1707610265751,-500.0,0.0003863,30]
[313721802,1707610265762,-500.0,0.0003863,30]
[313721803,1707610265772,-761.55,0.0003863,30]
[313721804,1707610265782,-500.0,0.0003863,30]
[313721805,1707610265791,-500.0,0.0003863,30]
[313721806,1707610265801,-1134.69,0.0003863,30]
[313721807,1707610265811,-500.0,0.0003863,30]
[313721808,1707610265822,-1282.87,0.0003863,30]
[313721809,1707610265831,-2214.84,0.0003863,30]
[313721810,1707610265841,-500.0,0.0003863,30]
[313721811,1707610265851,-500.0,0.0003863,30]
[313721812,1707610265860,-500.0,0.0003863,30]
[313721813,1707610265870,-500.0,0.0003863,30]
[313721814,1707610265879,-500.0,0.0003863,30]
[313721815,1707610265888,-500.0,0.0003863,30]
[313721816,1707610265898,-555.07,0.0003863,30]
[313721817,1707610265907,-534.98,0.0003863,30]
[313721818,1707610265916,-500.0,0.0003863,30]
[313721819,1707610265926,-500.0,0.0003863,30]
[313721820,1707610265935,-500.0,0.0003863,30]
[313721821,1707610265959,-500.0,0.0003863,30]
[313721822,1707610265968,-500.0,0.0003863,30]
[313721823,1707610265978,-500.0,0.0003863,30]
[313721824,1707610265987,-500.0,0.0003863,30]
[313721825,1707610265997,-856.7,0.0003863,30]
[313721826,1707610266008,-1524.18,0.0003863,30]
[313721827,1707610266017,-1303.25,0.0003863,30]
[313721828,1707610266026,-500.0,0.0003863,30]
[313721829,1707610266037,-500.0,0.0003863,30]
[313721830,1707610266046,-500.0,0.0003863,30]
[313721831,1707610266055,-500.0,0.0003863,30]
[313721832,1707610266064,-500.0,0.0003863,30]
[313721833,1707610266074,-500.0,0.0003863,30]
[313721834,1707610266084,-678.02,0.0003863,30]
[313721835,1707610266094,-500.0,0.0003863,30]
[313721836,1707610266103,-500.0,0.0003863,30]
[313721837,1707610266112,-500.0,0.0003863,30]
[313721838,1707610266121,-500.0,0.0003863,30]
[313721839,1707610266131,-500.0,0.0003863,30]
[313721840,1707610266140,-500.0,0.0003863,30]
[313721841,1707610266152,-500.0,0.0003863,30]
[313721842,1707610266161,-506.58,0.0003863,30]
[313721843,1707610266171,-515.54014678,0.0003863,30]